bitfinex-derivatives/quotes_BTCF0:USTF0_20251210
["timestamp","ask_amount","ask_price","bid_price","bid_amount"]
[1765405151465,0.03049,92081.0,92080.0,0.3967937]
[1765405151764,0.03049,92081.0,92080.0,0.1869567]
[1765405152066,0.39861,92081.0,92080.0,0.0015367]
[1765405152271,0.03049,92081.0,92080.0,0.3859367]
[1765405153161,0.03049,92081.0,92080.0,0.0015367]
[1765405153162,0.39861,92081.0,92080.0,0.0015367]
[1765405153665,0.75941,92081.0,92080.0,0.0015367]
[1765405155270,0.39129,92081.0,92080.0,0.3859367]
[1765405157059,0.75941,92081.0,92080.0,0.1869567]
[1765405157273,0.39129,92081.0,92080.0,0.3859367]
[1765405157959,0.75941,92081.0,92080.0,0.0015367]
[1765405158560,0.5753,92081.0,92080.0,0.3859367]
[1765405159366,0.03049,92081.0,92080.0,0.3859367]
[1765405159766,0.2145,92081.0,92080.0,0.3859367]
[1765405160473,0.03049,92081.0,92080.0,0.3859367]
[1765405163572,0.4094669,92081.0,92080.0,0.0015367]
[1765405164179,0.4094669,92081.0,92080.0,0.0013739]
[1765405164474,0.03049,92081.0,92080.0,0.3857739]
[1765405171173,0.03049,92081.0,92080.0,0.3966309]
[1765405171776,0.22397,92081.0,92080.0,0.3857739]
[1765405171976,0.22397,92081.0,92080.0,0.8955339]
[1765405172282,0.03049,92081.0,92080.0,0.8955339]
[1765405172977,0.41943,92081.0,92080.0,0.0013739]
[1765405173381,0.3997981,92071.0,92070.0,0.02918741]
[1765405173681,0.7605981,92071.0,92070.0,0.00016285]
[1765405173883,0.3997996,92058.0,92057.0,0.02902456]
[1765405174075,0.38894,92053.0,92051.0,0.02902456]
[1765405174274,0.0108603,92052.0,92050.0,0.40632649]
[1765405174482,0.3608,92055.0,92054.0,0.37722]
[1765405175180,0.55428,92055.0,92054.0,0.37722]
[1765405175379,0.3608,92055.0,92054.0,0.37722]
[1765405175574,0.3608,92062.0,92054.0,0.37722]
[1765405175885,0.3608,92062.0,92061.0,0.37722]
[1765405176305,0.00016294,92064.0,92063.0,0.37722]
[1765405179087,0.3608,92080.0,92079.0,0.4946171]
[1765405180685,0.3608,92080.0,92079.0,0.48376]
[1765405181075,0.19348,92073.0,92072.0,0.02902456]
[1765405181281,0.399798,92072.0,92070.0,0.0291875]
[1765405181485,0.19348,92071.0,92070.0,0.19528294]
[1765405181783,0.3997976,92076.0,92075.0,0.19512]
[1765405182384,0.3608,92077.0,92076.0,0.37722]
[1765405182787,0.55428,92077.0,92076.0,0.37722]
[1765405184187,0.5651374,92077.0,92076.0,0.37722]
[1765405184384,0.55428,92077.0,92076.0,0.37722]
[1765405185182,0.74974,92077.0,92076.0,0.37722]
[1765405185687,0.74974,92077.0,92071.0,0.010858]
[1765405185885,0.74974,92077.0,92070.0,0.50964294]
[1765405185886,0.38894,92071.0,92070.0,0.50964294]
[1765405186394,0.19348,92071.0,92070.0,0.88686294]
[1765405186586,0.3716574,92077.0,92070.0,0.50964294]
[1765405186786,0.3608,92077.0,92070.0,0.50964294]
[1765405186984,0.74974,92077.0,92076.0,0.19512]
[1765405187886,0.3608,92077.0,92076.0,0.48376]
[1765405188292,0.03049,92081.0,92080.0,0.388077]
[1765405190094,0.03049,92081.0,92080.0,0.478077]
[1765405190291,0.3608,92098.0,92088.0,0.4946161]
[1765405190493,2.94e-06,92089.0,92088.0,1.0037761]
[1765405190694,0.3608,92098.0,92097.0,0.388075]
[1765405192690,0.3608,92106.0,92100.0,0.10654]
[1765405192879,0.3608,92106.0,92105.0,0.37722]
[1765405193080,0.3608,92106.0,92105.0,0.3880741]
[1765405193286,0.55428,92106.0,92105.0,0.37722]
[1765405193491,0.3608,92106.0,92105.0,0.37722]
[1765405195082,0.03051294,92107.0,92106.0,0.388074]
[1765405195687,0.03051294,92107.0,92106.0,0.468074]
[1765405196491,0.03051294,92107.0,92106.0,0.388074]
[1765405198087,0.03051294,92107.0,92106.0,0.896914]
[1765405199584,0.03051294,92107.0,92094.0,0.39961291]
[1765405199585,0.35509,92099.0,92098.0,0.0108548]
[1765405199893,0.71589,92102.0,92101.0,0.36039]
[1765405200091,0.71589,92102.0,92101.0,0.17313]
[1765405200488,0.71589,92102.0,92101.0,0.36039]
[1765405200688,0.3608,92102.0,92101.0,0.8800045]
[1765405200883,0.03051294,92107.0,92106.0,0.371244]
[1765405201296,0.38560294,92107.0,92103.0,0.10493]
[1765405201491,0.32631263,92104.0,92103.0,0.4761743]
[1765405201682,0.3608,92132.0,92131.0,0.371241]
[1765405201882,0.3608,92132.0,92131.0,0.880121]
[1765405202087,0.00108531,92140.0,92139.0,0.3712401]
[1765405202791,0.00108531,92140.0,92139.0,0.4512401]
[1765405203495,0.00108531,92140.0,92139.0,0.3712401]
[1765405205886,0.00108531,92140.0,92139.0,0.8805201]
[1765405206088,0.00108531,92140.0,92139.0,0.90893267]
[1765405206288,0.00108531,92140.0,92139.0,0.8805201]
[1765405208789,0.00108531,92140.0,92139.0,0.90889901]
[1765405209295,0.00108531,92140.0,92139.0,0.98889901]
[1765405209689,0.00016285,92149.0,92148.0,0.476169]
[1765405209890,0.00016285,92149.0,92148.0,1.436009]
[1765405210199,0.0108461,92173.0,92164.0,0.3771471]
[1765405210391,0.3608,92178.0,92164.0,0.8861471]
[1765405211302,0.00010706,92174.0,92164.0,0.8861471]
[1765405214603,0.00010706,92174.0,92173.0,0.3771461]
[1765405214790,0.00010706,92174.0,92173.0,0.8859061]
[1765405215105,0.00108472,92190.0,92186.0,0.0108445]
[1765405215286,0.00108472,92190.0,92189.0,0.3771442]
[1765405215287,0.36911472,92190.0,92189.0,0.3771442]
[1765405215494,0.00108472,92190.0,92189.0,0.3771442]
[1765405215694,0.00108472,92190.0,92189.0,0.3663]
[1765405215695,0.36911472,92190.0,92189.0,0.3663]
[1765405216397,0.00108472,92190.0,92189.0,0.3663]
[1765405216594,0.18759472,92190.0,92189.0,0.3663]
[1765405217001,0.00108472,92190.0,92189.0,0.3663]
[1765405217393,0.00021715,92193.0,92192.0,0.3663]
[1765405217807,0.00021715,92193.0,92192.0,0.4563]
[1765405218099,0.72883,92212.0,92211.0,0.3663]
[1765405218704,0.72883,92212.0,92211.0,0.18885]
[1765405219203,0.72883,92212.0,92211.0,0.3663]
[1765405219898,0.3608,92212.0,92211.0,0.3663]
[1765405220104,0.3608,92212.0,92210.0,0.5194817]
[1765405220105,0.36803,92218.0,92217.0,0.3663]
[1765405220913,0.36803,92211.0,92210.0,0.50864]
[1765405221202,0.72883,92211.0,92210.0,0.50864]
[1765405224200,0.72883,92211.0,92210.0,0.87494]
[1765405225006,0.72883,92211.0,92210.0,0.69749]
[1765405226001,0.72883,92211.0,92210.0,0.50864]
[1765405227204,0.72883,92211.0,92210.0,0.87494]
[1765405227603,0.3608,92211.0,92210.0,0.87494]
[1765405227792,0.3788701,92225.0,92224.0,0.18885]
[1765405227994,0.7396701,92225.0,92224.0,0.3663]
[1765405229111,0.72883,92225.0,92224.0,0.3663]
[1765405230605,0.3608,92225.0,92224.0,0.3663]
[1765405230904,0.70672,92225.0,92224.0,0.3663]
[1765405231408,0.3608,92225.0,92224.0,0.3771401]
[1765405232710,0.1885694,92230.0,92229.0,0.35018]
[1765405233005,0.0108394,92230.0,92229.0,0.35018]
[1765405233404,0.1885694,92230.0,92229.0,0.35018]
[1765405233604,0.3716392,92231.0,92230.0,0.46006]
[1765405233803,0.7175592,92231.0,92230.0,0.46006]
[1765405234202,0.3567604,92221.0,92220.0,0.18189]
[1765405234403,0.7175604,92221.0,92220.0,0.46006]
[1765405234704,0.7175604,92221.0,92220.0,0.35018]
[1765405235011,0.7175604,92221.0,92220.0,0.46006]
[1765405238509,0.34592,92216.0,92215.0,0.35034265]
[1765405238696,0.70672,92216.0,92215.0,0.35034265]
[1765405238895,0.3608,92216.0,92215.0,0.35034265]
[1765405239100,0.3608,92216.0,92215.0,0.37986894]
[1765405239811,0.70672,92216.0,92215.0,0.37986894]
[1765405240309,0.70672,92216.0,92215.0,0.02968894]
[1765405243997,0.0108415,92212.0,92211.0,0.02915794]
[1765405244201,0.3567635,92195.0,92194.0,0.05769381]
[1765405244404,0.7175635,92195.0,92194.0,0.35018]
[1765405245201,0.34592,92186.0,92185.0,0.35034265]
[1765405245401,0.70672,92186.0,92185.0,0.35034265]
[1765405245608,0.3608,92186.0,92185.0,0.35034265]
[1765405245815,0.53853,92186.0,92185.0,0.35034265]
[1765405246404,0.70672,92186.0,92185.0,0.18205265]
[1765405246607,0.70672,92186.0,92185.0,0.00016265]
[1765405246807,0.70672,92186.0,92185.0,0.35034265]
[1765405247008,0.3608,92186.0,92185.0,0.36118735]
[1765405247208,0.70672,92186.0,92185.0,0.35034265]
[1765405247714,0.70672,92186.0,92185.0,0.00016265]
[1765405249916,0.70672,92186.0,92185.0,0.35034265]
[1765405250112,0.53853,92186.0,92185.0,0.35034265]
[1765405251216,0.3608,92186.0,92185.0,0.35034265]
[1765405253621,0.34592,92176.0,92175.0,0.23958381]
[1765405253827,0.34592,92176.0,92175.0,0.43018]
[1765405255910,0.0108456,92177.0,92176.0,0.35018]
[1765405256109,0.0108453,92180.0,92179.0,0.16829]
[1765405256324,0.0108453,92180.0,92179.0,0.37915726]
[1765405256916,0.0108449,92184.0,92183.0,0.35018]
[1765405257121,0.00016265,92185.0,92184.0,0.3610248]
[1765405257320,0.00016265,92185.0,92184.0,0.35018]
[1765405259027,0.33863265,92185.0,92184.0,0.35018]
[1765405259229,0.33863265,92185.0,92184.0,0.18189]
[1765405259417,0.32863,92181.0,92180.0,0.27574]
[1765405259619,0.32863,92181.0,92180.0,0.30469847]
[1765405259923,0.32863,92181.0,92180.0,0.47781847]
[1765405260232,0.3394751,92181.0,92180.0,0.47781847]
[1765405260430,0.0108448,92184.0,92182.0,0.010845]
[1765405260731,0.32879265,92185.0,92184.0,0.33898]
[1765405260928,0.3394751,92181.0,92180.0,0.44886]
[1765405261231,0.3394751,92181.0,92179.0,0.5078]
[1765405261232,0.32863,92180.0,92179.0,0.84678]
[1765405261427,0.32863,92180.0,92179.0,0.53676077]
[1765405262428,0.32863,92180.0,92179.0,0.87574077]
[1765405262626,0.32863,92180.0,92179.0,0.84678]
[1765405263236,0.32863,92180.0,92179.0,0.5078]
[1765405265736,0.40022,92180.0,92179.0,0.5078]
[1765405265926,0.76102,92180.0,92179.0,0.5078]
[1765405266232,0.68943,92180.0,92179.0,0.84678]
[1765405266432,0.3608,92180.0,92179.0,0.87682791]
[1765405266637,0.00016265,92185.0,92184.0,0.3498248]
[1765405268026,0.00016265,92185.0,92184.0,0.37974914]
[1765405268935,0.16805265,92185.0,92184.0,0.36890434]
[1765405269130,0.16805265,92185.0,92184.0,0.37974914]
[1765405269331,0.16805265,92185.0,92184.0,0.36890434]
[1765405269637,0.52885265,92185.0,92184.0,0.36890434]
[1765405270329,0.00016265,92185.0,92184.0,0.36890434]
[1765405273343,0.3608,92188.0,92187.0,0.32261]
[1765405273544,0.3608,92188.0,92187.0,0.35253434]
[1765405274041,0.3608,92188.0,92187.0,0.39152449]
[1765405274240,0.3608,92188.0,92187.0,0.35253434]
[1765405274442,0.3608,92207.0,92195.0,0.0108435]
[1765405274443,0.3608,92196.0,92195.0,0.0108435]
[1765405274739,0.00016232,92197.0,92196.0,0.32261]
[1765405274939,0.00016232,92197.0,92196.0,0.35253434]
[1765405276825,0.07714393,92228.0,92196.0,0.35253434]
[1765405276826,0.3608,92225.0,92206.0,0.32261]
[1765405277028,0.3608,92214.0,92213.0,0.32261]
[1765405277737,0.3608,92225.0,92224.0,0.32261]
[1765405279431,0.32607,92241.0,92240.0,0.32261]
[1765405279630,0.32607,92235.0,92234.0,0.32261]
[1765405279832,0.32607,92235.0,92234.0,0.82993]
[1765405280032,0.32607,92235.0,92234.0,0.86020308]
[1765405280236,0.3369088,92235.0,92234.0,0.86020308]
[1765405280432,0.3369088,92235.0,92234.0,0.53759308]
[1765405280642,0.3369091,92232.0,92231.0,0.00016265]
[1765405280835,0.3369091,92232.0,92231.0,0.1898518]
[1765405281139,0.3369091,92232.0,92231.0,0.0304018]
[1765405281337,0.3369091,92232.0,92231.0,0.00016265]
[1765405282527,0.3369091,92232.0,92231.0,0.32277265]
[1765405283133,0.32607,92240.0,92239.0,0.32261]
[1765405283336,0.0108379,92243.0,92242.0,0.32261]
[1765405283542,0.1604,92243.0,92242.0,0.32261]
[1765405283743,0.32607,92243.0,92242.0,0.32261]
[1765405285431,0.32607,92237.0,92236.0,0.8406086]
[1765405286946,0.3369085,92237.0,92236.0,0.82977]
[1765405287140,0.32607,92237.0,92236.0,0.82977]
[1765405287545,0.3369091,92232.0,92231.0,0.00016265]
[1765405287735,0.6977091,92232.0,92231.0,0.00016265]
[1765405290945,0.1712391,92232.0,92231.0,0.36776185]
[1765405291137,0.0108388,92235.0,92234.0,0.3675989]
[1765405291343,0.0108385,92238.0,92237.0,0.3675983]
[1765405291547,0.1873885,92238.0,92237.0,0.3675983]
[1765405291853,0.3574185,92238.0,92237.0,0.3675983]
[1765405293650,0.1873885,92238.0,92237.0,0.3675983]
[1765405294255,0.17655,92238.0,92237.0,0.3725983]
[1765405294854,0.34658,92238.0,92237.0,0.3725983]
[1765405296257,0.34658,92238.0,92237.0,0.36176]
[1765405298954,0.17655,92238.0,92237.0,0.3725985]
[1765405299159,0.17655,92238.0,92237.0,0.3785985]
[1765405299359,0.34658,92238.0,92237.0,0.36776]
[1765405300553,0.33271609,92260.0,92259.0,0.35676]
[1765405300554,0.4268058,92260.0,92259.0,0.35676]
[1765405302160,0.4268058,92260.0,92259.0,0.35776]
[1765405302364,0.4268058,92260.0,92259.0,0.36076]
[1765405302666,0.4268058,92260.0,92259.0,0.004]
[1765405305066,0.4268058,92260.0,92259.0,0.36076]
[1765405305362,0.4268058,92260.0,92259.0,0.004]
[1765405307063,0.3574158,92260.0,92259.0,0.36076]
[1765405307568,0.34658,92260.0,92259.0,0.36076]
[1765405307752,0.34658,92260.0,92259.0,0.46941]
[1765405308253,0.34658,92260.0,92259.0,0.36076]
[1765405309061,0.34658,92260.0,92259.0,0.35976]
[1765405309258,0.34758,92260.0,92259.0,0.36576]
[1765405309456,0.34758,92260.0,92259.0,0.36976]
[1765405310051,0.34758,92260.0,92259.0,0.37076]
[1765405310262,0.34758,92260.0,92259.0,0.40102217]
[1765405310465,0.3574148,92269.0,92268.0,0.35676]
[1765405310664,0.3574148,92269.0,92268.0,0.46541]
[1765405310665,0.17655,92269.0,92268.0,0.46541]
[1765405310863,0.7182142,92275.0,92274.0,0.35676]
[1765405311755,0.7182142,92275.0,92274.0,0.17315]
[1765405311951,0.3574148,92269.0,92268.0,0.36976]
[1765405312257,0.3574148,92269.0,92268.0,0.006]
[1765405312656,0.44775,92268.0,92267.0,0.50668]
[1765405313062,0.44775,92268.0,92267.0,0.67983]
[1765405313562,0.44775,92268.0,92267.0,0.86344]
[1765405314060,0.34658,92268.0,92267.0,0.86344]
[1765405314854,0.34658,92268.0,92267.0,0.86944]
[1765405315054,0.34658,92268.0,92267.0,0.87544]
[1765405315254,0.44775,92268.0,92267.0,0.86944]
[1765405315564,0.44775,92268.0,92267.0,0.87644]
[1765405315762,0.44875,92268.0,92267.0,0.87644]
[1765405316562,0.44775,92268.0,92267.0,0.51968]
[1765405317459,0.07736065,92286.0,92285.0,0.35676]
[1765405317660,0.34679672,92286.0,92285.0,0.35676]
[1765405318163,0.34679672,92286.0,92285.0,0.38776696]
[1765405318770,0.34679672,92286.0,92285.0,0.39176696]
[1765405319062,0.35762962,92286.0,92285.0,0.39476696]
[1765405319267,0.35762962,92286.0,92285.0,0.39576696]
[1765405319462,0.45410962,92286.0,92285.0,0.21215696]
[1765405319654,0.35762962,92286.0,92285.0,0.38309696]
[1765405320861,0.45410962,92286.0,92285.0,0.38309696]
[1765405321069,0.35762962,92286.0,92285.0,0.38309696]
[1765405321565,0.45410962,92286.0,92285.0,0.35209]
[1765405322551,0.45410962,92286.0,92285.0,0.18115]
[1765405322958,0.45410962,92286.0,92285.0,0.35209]
[1765405323458,0.45410962,92286.0,92285.0,0.18115]
[1765405324566,0.45410962,92286.0,92285.0,0.35209]
[1765405324865,0.35762962,92286.0,92285.0,0.35209]
[1765405325868,0.34679672,92286.0,92285.0,0.35209]
[1765405326070,0.00021672,92286.0,92285.0,0.35209]
[1765405327065,0.6968,92295.0,92294.0,0.3401918]
[1765405327570,0.3608,92295.0,92294.0,0.3401918]
[1765405328367,0.3608,92295.0,92294.0,0.3451918]
[1765405329367,0.1827202,92308.0,92307.0,0.32936]
[1765405329567,0.3468302,92308.0,92307.0,0.32936]
[1765405329769,0.3468313,92299.0,92298.0,0.00016256]
[1765405330072,0.7076313,92299.0,92298.0,2.56e-06]
[1765405330367,0.05649,92286.0,92278.0,0.66652]
[1765405330567,0.3282436,92279.0,92278.0,0.16004]
[1765405330763,0.1719136,92279.0,92278.0,0.36137506]
[1765405330970,0.3282436,92279.0,92278.0,0.36137506]
[1765405331168,0.0108328,92286.0,92284.0,0.0108329]
[1765405331367,0.3292428,92286.0,92285.0,0.32779]
[1765405331574,0.4246228,92286.0,92285.0,0.16004]
[1765405331873,0.3282436,92279.0,92278.0,0.35579]
[1765405332072,0.3282436,92279.0,92278.0,0.38928326]
[1765405332774,0.0108332,92283.0,92282.0,0.32779]
[1765405332958,0.3292428,92286.0,92285.0,0.32779]
[1765405333156,0.3282428,92286.0,92285.0,0.36128585]
[1765405333968,0.4236228,92286.0,92285.0,0.36128585]
[1765405334174,0.4236228,92286.0,92285.0,0.36628585]
[1765405334573,0.4236228,92286.0,92285.0,0.37328585]
[1765405336063,0.4236228,92286.0,92285.0,0.20553585]
[1765405337468,0.4236228,92286.0,92285.0,0.04549585]
[1765405338270,0.4236228,92286.0,92285.0,0.20553585]
[1765405338662,0.4236228,92286.0,92285.0,0.04549585]
[1765405339060,0.3282428,92286.0,92285.0,0.37328585]
[1765405339262,0.3282428,92286.0,92285.0,0.04549585]
[1765405339869,0.3282428,92286.0,92276.0,0.00016256]
[1765405339870,0.31741,92277.0,92276.0,0.00016256]
[1765405340064,0.67821,92277.0,92276.0,0.00016256]
[1765405340962,0.67821,92277.0,92276.0,0.01816256]
[1765405341166,0.68021,92277.0,92276.0,0.03316256]
[1765405346481,0.68021,92277.0,92276.0,0.06236857]
[1765405346872,0.68021,92277.0,92257.0,0.07695128]
[1765405346873,0.4112044,92272.0,92270.0,0.03637431]
[1765405347073,0.4236254,92264.0,92263.0,0.05769381]
[1765405347272,0.7844254,92264.0,92262.0,0.05769381]
[1765405347473,0.3282461,92258.0,92257.0,0.16015257]
[1765405347875,0.3282461,92258.0,92257.0,0.00011257]
[1765405348076,0.3282461,92258.0,92257.0,0.32790257]
[1765405348977,0.3282461,92258.0,92257.0,0.00011257]
[1765405349677,0.3282461,92258.0,92257.0,0.18730257]
[1765405349678,0.3312461,92258.0,92257.0,0.18730257]
[1765405350283,0.3312461,92258.0,92257.0,0.35669257]
[1765405351893,0.3312461,92258.0,92257.0,0.38851189]
[1765405354481,0.003,92258.0,92257.0,0.38851189]
[1765405354786,0.32586,92258.0,92257.0,0.38851189]
[1765405355192,0.16803,92258.0,92257.0,0.38851189]
[1765405358284,0.003,92258.0,92257.0,0.38851189]
[1765405360286,0.00016256,92267.0,92266.0,0.3404151]
[1765405360488,0.3608,92289.0,92280.0,0.3404135]
[1765405360788,0.09742,92295.0,92280.0,0.3404135]
[1765405360988,0.0108329,92285.0,92280.0,0.4337335]
[1765405361483,0.0108326,92288.0,92280.0,0.4337335]
[1765405361689,0.3336926,92288.0,92287.0,0.32958]
[1765405362390,0.16503,92288.0,92287.0,0.32958]
[1765405362592,0.16503,92288.0,92287.0,0.3602489]
[1765405362784,0.32302226,92290.0,92289.0,0.32958]
[1765405363472,0.16519226,92290.0,92289.0,0.32958]
[1765405363676,0.32302226,92290.0,92289.0,0.32958]
[1765405364180,0.32402226,92290.0,92289.0,0.32958]
[1765405365180,0.32702226,92290.0,92289.0,0.32958]
[1765405369179,0.00416226,92290.0,92289.0,0.3404124]
[1765405369596,0.00416226,92290.0,92289.0,0.45107081]
[1765405369888,0.16503,92307.0,92306.0,0.3404104]
[1765405370094,0.32286,92307.0,92306.0,0.3404104]
[1765405371093,0.32486,92307.0,92306.0,0.3414104]
[1765405371596,0.17003,92307.0,92306.0,0.3414104]
[1765405371986,0.32786,92307.0,92306.0,0.3414104]
[1765405373598,0.32786,92307.0,92306.0,0.33058]
[1765405383200,0.005,92307.0,92306.0,0.41058]
[1765405383394,0.005,92307.0,92306.0,0.33058]
[1765405383601,0.15082,92324.0,92323.0,0.1649484]
[1765405383801,0.30022,92324.0,92323.0,0.3227784]
[1765405383999,0.15082,92324.0,92323.0,0.3227784]
[1765405384202,0.30022,92324.0,92323.0,0.3227784]
[1765405384405,0.3608,92334.0,92323.0,0.31195]
[1765405384601,0.66102,92334.0,92333.0,0.31195]
[1765405384810,0.30022,92322.0,92321.0,0.8289387]
[1765405385109,0.30022,92320.0,92319.0,0.00016247]
[1765405385409,0.30022,92320.0,92319.0,0.80851247]
[1765405386706,0.30122,92320.0,92319.0,0.80851247]
[1765405386910,0.001,92320.0,92319.0,0.80851247]
[1765405387807,0.30122,92320.0,92319.0,0.80851247]
[1765405388308,0.30122,92320.0,92319.0,0.50624247]
[1765405388606,0.30122,92320.0,92319.0,0.00016247]
[1765405389313,0.30122,92320.0,92319.0,0.15799247]
[1765405389807,0.30122,92320.0,92319.0,0.31211247]
[1765405390197,0.30321,92320.0,92319.0,0.34203836]
[1765405390395,0.30321,92320.0,92319.0,0.31211247]
[1765405391097,0.30321,92320.0,92319.0,0.34204227]
[1765405391307,0.001,92320.0,92319.0,0.34204227]
[1765405393103,0.1482,92320.0,92319.0,0.34204227]
[1765405393509,0.001,92320.0,92319.0,0.34204227]
[1765405394207,0.1482,92320.0,92319.0,0.34204227]
[1765405394711,0.001,92320.0,92319.0,0.34204227]
[1765405396409,0.30321,92320.0,92319.0,0.34204227]
[1765405396919,0.30321,92320.0,92319.0,0.03009227]
[1765405397207,0.30321,92320.0,92319.0,0.00016247]
[1765405401011,0.3130409,92302.0,92301.0,0.321901]
[1765405401305,0.3130409,92302.0,92301.0,0.35168972]
[1765405401513,0.30221,92302.0,92301.0,0.35168972]
[1765405402098,0.30321,92302.0,92301.0,0.34385872]
[1765405402306,0.30321,92302.0,92301.0,0.34685872]
[1765405403805,0.001,92302.0,92301.0,0.34685872]
[1765405404207,0.1482,92302.0,92301.0,0.34685872]
[1765405404407,0.001,92302.0,92301.0,0.34685872]
[1765405405913,0.001,92302.0,92301.0,0.38566301]
[1765405406112,0.0108293,92316.0,92310.0,0.31107]
[1765405406412,0.0108283,92325.0,92310.0,0.31107]
[1765405406413,0.0108296,92314.0,92310.0,0.35168872]
[1765405407011,0.14736216,92311.0,92310.0,0.35168872]
[1765405407320,0.30237216,92311.0,92310.0,0.35268872]
[1765405407504,0.30237216,92311.0,92310.0,0.35468872]
[1765405408519,0.30237216,92311.0,92310.0,0.34385872]
[1765405412525,0.30237216,92311.0,92310.0,0.03278872]
[1765405413719,0.30237216,92311.0,92310.0,0.32162872]
[1765405414024,0.14264216,92311.0,92310.0,0.33245872]
[1765405414213,0.28430216,92311.0,92310.0,0.33245872]
[1765405415106,0.28430216,92311.0,92310.0,0.03278872]
[1765405417228,0.28430216,92311.0,92310.0,0.003]
[1765405420421,0.28430216,92311.0,92310.0,0.00183744]
[1765405420625,0.28414,92297.0,92296.0,0.02918088]
[1765405420818,0.28414,92297.0,92296.0,0.02948097]
[1765405421415,0.28414,92297.0,92296.0,0.31832097]
[1765405421617,0.28414,92297.0,92296.0,0.34750185]
[1765405421922,0.28414,92297.0,92296.0,0.21012155]
[1765405422127,0.28614,92297.0,92296.0,0.22512155]
[1765405422427,0.28714,92297.0,92296.0,0.23912155]
[1765405422629,0.28714,92297.0,92296.0,0.05848097]
[1765405423225,0.28714,92297.0,92296.0,0.20992097]
[1765405423617,0.28714,92297.0,92296.0,0.34732097]
[1765405424019,0.28714,92297.0,92296.0,0.20992097]
[1765405424314,0.28714,92297.0,92296.0,0.05848097]
[1765405424518,0.28714,92297.0,92296.0,0.34732097]
[1765405425335,0.28714,92297.0,92296.0,0.05848097]
[1765405425726,0.28714,92297.0,92296.0,0.34732097]
[1765405426531,0.28714,92297.0,92296.0,0.05848097]
[1765405430334,0.28714,92297.0,92296.0,0.029]
[1765405433634,0.28714,92297.0,92296.0,0.05956788]
[1765405434236,0.28714,92297.0,92296.0,0.029]
[1765405436445,0.28714,92297.0,92296.0,0.0246455]
[1765405441140,0.28714,92297.0,92296.0,0.2976055]
[1765405442343,0.28714,92297.0,92296.0,0.1630955]
[1765405442544,0.28714,92297.0,92296.0,0.0246455]
[1765405444145,0.28714,92297.0,92296.0,0.2976055]
[1765405450962,0.28714,92297.0,92296.0,0.32818538]
[1765405452657,0.003,92297.0,92296.0,0.32818538]
[1765405453061,0.1337,92297.0,92296.0,0.32818538]
[1765405453562,0.26689,92297.0,92296.0,0.32818538]
[1765405456363,0.26689,92297.0,92296.0,0.35740643]
[1765405457350,0.1337,92297.0,92296.0,0.35740643]
[1765405457667,0.26689,92297.0,92296.0,0.35740643]
[1765405458267,0.26689,92297.0,92296.0,0.32818538]
[1765405458457,0.1337,92297.0,92296.0,0.32818538]
[1765405458654,0.13086216,92311.0,92310.0,0.07947]
[1765405458854,0.13086216,92311.0,92310.0,0.38145988]
[1765405459056,0.00016216,92311.0,92310.0,0.38145988]
[1765405459665,0.00016216,92311.0,92310.0,0.38245988]
[1765405459869,0.00116216,92311.0,92310.0,0.38245988]
[1765405460169,0.00116216,92311.0,92310.0,0.38345988]
[1765405460568,0.26505216,92311.0,92310.0,0.38345988]
[1765405460774,0.00116216,92311.0,92310.0,0.38345988]
[1765405461261,0.00116216,92311.0,92310.0,0.35288]
[1765405461462,0.00116216,92311.0,92310.0,0.38529718]
[1765405462473,0.3608,92314.0,92313.0,0.27141]
[1765405462675,0.3608,92314.0,92313.0,0.30382718]
[1765405462870,0.4915,92314.0,92313.0,0.27141]
[1765405463868,0.4915,92314.0,92313.0,0.27241]
[1765405464366,0.2747179,92328.0,92327.0,0.27141]
[1765405465475,0.3552479,92328.0,92327.0,0.27241]
[1765405466080,0.3562479,92328.0,92327.0,0.27241]
[1765405468371,0.3562479,92328.0,92327.0,0.001]
[1765405468573,0.3562479,92328.0,92327.0,0.285578]
[1765405468875,0.3562479,92328.0,92327.0,0.27475]
[1765405470064,0.3562479,92328.0,92327.0,0.001]
[1765405470383,0.3562479,92328.0,92327.0,0.27475]
[1765405476983,0.3562479,92328.0,92327.0,0.001]
[1765405478185,0.3562479,92328.0,92327.0,0.27475]
[1765405480094,0.2777179,92328.0,92327.0,0.27475]
[1765405480282,0.3654779,92328.0,92327.0,0.27475]
[1765405483394,0.3654779,92328.0,92327.0,0.03462136]
[1765405483582,0.3654779,92328.0,92327.0,0.13939]
[1765405483893,0.3654779,92328.0,92327.0,0.001]
[1765405484094,0.3654779,92328.0,92327.0,0.13939]
[1765405485389,0.3654779,92328.0,92327.0,0.17300488]
[1765405485793,0.3654779,92328.0,92327.0,0.30836488]
[1765405487593,0.003,92328.0,92327.0,0.30836488]
[1765405487794,0.003,92328.0,92327.0,0.66916488]
[1765405488588,0.001,92328.0,92327.0,0.66816488]
[1765405488900,0.37970956,92340.0,92339.0,0.2845766]
[1765405489092,0.37970956,92340.0,92339.0,0.31819148]
[1765405491088,0.28112296,92340.0,92339.0,0.31819148]
[1765405491288,0.28212296,92340.0,92339.0,0.31819148]
[1765405497300,0.14903296,92340.0,92339.0,0.31819148]
[1765405497803,0.28212296,92340.0,92339.0,0.31819148]
[1765405498000,0.00208296,92340.0,92339.0,0.31819148]
[1765405498206,0.3716952,92352.0,92351.0,0.2738752]
[1765405498502,0.36087,92352.0,92351.0,0.30691131]
[1765405498698,0.371695,92352.0,92351.0,0.30691131]
[1765405499094,0.371695,92352.0,92351.0,0.29608611]
[1765405499294,0.374695,92352.0,92351.0,0.29708611]
[1765405499689,0.376695,92352.0,92351.0,0.29708611]
[1765405500299,0.376695,92352.0,92351.0,0.03403611]
[1765405500506,0.376695,92352.0,92351.0,0.001]
[1765405500700,0.2839361,92343.0,92342.0,0.62401247]
[1765405500903,0.2839361,92343.0,92342.0,0.39368753]
[1765405501102,0.2839361,92343.0,92342.0,0.03288753]
[1765405501591,0.2839361,92343.0,92342.0,0.00016247]
[1765405501799,0.2839361,92343.0,92342.0,0.00116247]
[1765405501994,0.2839361,92343.0,92342.0,0.00216247]
[1765405510514,0.2839361,92343.0,92342.0,0.27034247]
[1765405512805,0.0108257,92347.0,92346.0,0.33926]
[1765405513005,0.2805953,92350.0,92349.0,0.2790051]
[1765405514205,0.63057,92356.0,92355.0,0.26818]
[1765405514409,0.26977,92356.0,92355.0,0.26818]